bitfinex/quotes_ETHUSD_20251021
["timestamp","ask_amount","ask_price","bid_price","bid_amount"]
[1761060104123,5.93317552,4059.8,4059.7,1.21243485]
[1761060104283,2.46323619,4059.7,4059.6,1.21243485]
[1761060104684,0.099,4060.3,4058.5,4.49135541]
[1761060104685,6.02988885,4060.3,4059.4,1.61632893]
[1761060104950,2.46311485,4059.9,4059.7,1.21046423]
[1761060105086,2.46323619,4059.7,4059.6,1.21046423]
[1761060105288,2.46299352,4060.1,4058.7,1.61632893]
[1761060105289,0.099,4059.8,4058.7,1.61632893]
[1761060105482,0.099,4059.8,4057.6,2.92215454]
[1761060105483,0.099,4062.7,4058.9,1.61632893]
[1761060105706,0.099,4060.7,4059.6,1.61632893]
[1761060106019,0.099,4060.7,4059.0,5.65704182]
[1761060106020,0.099,4061.2,4060.3,1.61632893]
[1761060106236,0.099,4061.2,4060.4,0.02462811]
[1761060106432,0.099,4061.2,4059.8,3.482]
[1761060106433,0.0992,4061.6,4060.6,1.61632893]
[1761060106634,18.26535484,4062.8,4060.2,0.2166]
[1761060106635,0.0993,4062.2,4060.7,1.61632893]
[1761060106840,0.1146,4061.9,4060.7,1.61632893]
[1761060107000,0.0993,4062.2,4060.2,1.61632893]
[1761060107001,2.46281154,4060.4,4060.2,1.61632893]
[1761060107328,0.1146,4061.0,4059.6,2.92215454]
[1761060107329,0.01946068,4061.0,4059.9,2.02740893]
[1761060107509,2.46267732,4060.7,4060.1,1.60858154]
[1761060107838,0.79281993,4061.1,4059.6,3.497]
[1761060107839,3.25521178,4061.1,4060.0,1.60858154]
[1761060108048,2.46282552,4060.4,4060.0,1.60858154]
[1761060108340,1.728,4060.6,4060.1,0.48286548]
[1761060108510,1.728,4060.6,4058.3,3.9684]
[1761060108511,3.496,4060.7,4059.2,1.60858154]
[1761060108714,2.46320758,4059.8,4059.3,0.4829719]
[1761060108921,2.46335755,4059.5,4059.4,0.4829719]
[1761060109438,4.30595755,4059.5,4059.4,0.4829719]
[1761060109939,7.68835755,4059.5,4059.4,0.4829719]
[1761060110105,7.80295755,4059.5,4059.4,0.4829719]
[1761060111037,4.19135755,4059.5,4059.4,0.4829719]
[1761060111263,2.46245635,4061.0,4059.4,0.4829719]
[1761060111264,0.1146,4061.6,4059.4,0.4829719]
[1761060111552,0.2139,4062.2,4060.4,1.61554389]
[1761060111710,0.2139,4062.2,4059.5,0.99101831]
[1761060111711,0.0993,4062.2,4060.8,1.61554389]
[1761060112040,0.0995,4062.6,4060.9,0.4829719]
[1761060112241,0.0995,4062.6,4060.7,2.02740893]
[1761060112242,0.841,4062.2,4061.0,0.4829719]
[1761060112416,3.25520696,4061.1,4061.0,0.4829719]
[1761060112620,3.94145774,4061.1,4061.0,0.4829719]
[1761060112827,3.25520696,4061.1,4061.0,0.4829719]
[1761060113139,3.36970696,4061.1,4061.0,0.4829719]
[1761060113328,6.89170696,4061.1,4061.0,0.4829719]
[1761060113743,3.36970696,4061.1,4061.0,0.4829719]
[1761060114113,6.88970696,4061.1,4061.0,0.4829719]
[1761060114511,5.09770696,4061.1,4061.0,0.4829719]
[1761060114844,8.61370696,4061.1,4061.0,0.4829719]
[1761060115144,1.728,4061.0,4059.5,2.02740893]
[1761060115443,2.46341823,4059.4,4059.3,1.61851014]
[1761060115645,4.19056895,4060.8,4058.7,2.02740893]
[1761060115646,0.1144,4060.6,4058.9,2.02740893]
[1761060115811,0.1144,4060.6,4059.2,1.61934977]
[1761060115812,1.728,4060.4,4059.2,1.61934977]
[1761060116009,2.46341292,4059.5,4058.3,2.92215454]
[1761060116245,2.46293286,4060.2,4057.7,2.46441435]
[1761060116246,2.46316174,4059.9,4059.0,4.48995995]
[1761060116448,2.46316174,4059.9,4059.5,1.62110924]
[1761060116661,3.516,4060.2,4059.5,1.62110924]
[1761060116935,2.46347892,4059.3,4059.2,1.62110924]
[1761060117120,3.515,4059.3,4059.0,1.62110924]
[1761060117340,3.515,4059.3,4058.3,2.02631525]
[1761060117341,3.515,4059.3,4059.1,1.62110924]
[1761060117547,5.97847892,4059.3,4059.2,1.62110924]
[1761060117726,2.46353961,4059.2,4058.9,1.62110924]
[1761060117925,2.46353961,4059.2,4058.0,2.83684135]
[1761060117926,2.4639038,4058.6,4058.5,1.62110924]
[1761060118128,2.46403216,4058.4,4057.9,2.02631525]
[1761060118427,2.46403216,4058.4,4057.5,3.27244135]
[1761060118428,2.4639791,4058.5,4058.1,2.02631525]
[1761060118632,1.728,4059.6,4057.9,2.02631525]
[1761060118937,0.1144,4060.3,4058.7,1.6289548]
[1761060119147,2.46328568,4059.7,4059.5,1.6289548]
[1761060119349,2.46329687,4059.6,4059.0,2.02631525]
[1761060119536,0.1144,4060.4,4059.0,2.02631525]
[1761060119850,3.511,4060.7,4059.9,1.63124757]
[1761060120049,0.79281993,4061.1,4059.5,2.46335222]
[1761060120050,0.79281993,4061.1,4060.4,1.630224]
[1761060120223,3.02846068,4061.0,4060.4,1.630224]
[1761060120561,0.79281993,4061.1,4060.8,1.630224]
[1761060120763,2.46256895,4060.8,4060.7,1.630224]
[1761060120927,2.46262959,4060.7,4060.6,1.630224]
[1761060121130,2.46299352,4060.1,4060.0,2.02631525]
[1761060121362,3.1374919,4060.1,4060.0,2.02631525]
[1761060121666,2.93663954,4060.1,4059.9,2.02631525]
[1761060121864,2.46305418,4060.0,4059.9,2.02631525]
[1761060122049,2.46219079,4061.5,4059.6,1.63642982]
[1761060122050,1.728,4060.8,4059.6,1.63642982]
[1761060122250,2.46244767,4061.0,4060.1,1.63642982]
[1761060122450,0.003,4061.3,4060.1,1.63642982]
[1761060122651,4.30488082,4063.9,4060.1,1.63642982]
[1761060122652,1.43680896,4068.0,4065.2,0.2207]
[1761060122852,1.43680896,4068.0,4065.7,1.63624773]
[1761060122853,0.1635,4068.0,4065.7,1.63624773]
[1761060123054,0.1635,4068.0,4066.0,1.73624772]
[1761060123253,0.1635,4068.0,4067.0,0.09999999]
[1761060123430,0.10829606,4069.2,4067.3,0.09999999]
[1761060123630,2.45683372,4070.3,4066.1,0.6563]
[1761060123631,1.28900091,4070.2,4068.9,0.09999999]
[1761060123969,0.10318046,4069.0,4067.9,1.63624773]
[1761060124130,0.10318046,4069.0,4068.4,1.63624773]
[1761060124131,0.00358046,4069.0,4068.4,1.63624773]
[1761060124332,0.00358046,4069.0,4068.1,0.09999999]
[1761060124569,2.45780798,4068.7,4068.1,0.09999999]
[1761060124731,0.01946068,4068.6,4068.1,0.09999999]
[1761060124932,0.01946068,4068.5,4068.1,0.09999999]
[1761060125127,1.61518046,4069.0,4067.8,0.09999999]
[1761060125440,0.10318046,4069.0,4067.8,0.09999999]
[1761060125637,0.1224,4067.9,4067.8,0.09999999]
[1761060126369,1.27017934,4073.6,4071.6,0.09999999]
[1761060126527,1.27017934,4073.6,4068.0,0.2207]
[1761060126528,0.305,4073.8,4070.6,0.09999999]
[1761060126729,0.305,4073.8,4069.8,3.83296404]
[1761060126730,2.45646227,4070.9,4070.5,0.90927085]
[1761060126964,0.862,4071.1,4069.8,0.09999999]
[1761060127168,2.45704259,4070.0,4069.6,0.09999999]
[1761060127332,2.41146068,4071.0,4069.6,0.09999999]
[1761060127333,3.66,4070.2,4069.6,0.09999999]
[1761060127765,2.45515723,4073.1,4068.2,0.80927086]
[1761060127766,3.658,4071.0,4069.1,0.4356]
[1761060127927,2.45588317,4071.9,4069.1,0.4356]
[1761060127928,3.658,4070.9,4069.1,0.4356]
[1761060128139,2.4568429,4070.3,4070.1,0.09999999]
[1761060128346,2.4550976,4073.2,4068.0,0.2207]
[1761060128347,0.05,4075.0,4069.0,0.4356]
[1761060128539,2.32072419,4079.2,4068.4,0.4356]
[1761060128540,1.29930517,4073.6,4068.4,0.4356]
[1761060128756,1.29930517,4073.6,4068.0,0.2207]
[1761060128757,2.45740147,4069.4,4069.3,0.09999999]
[1761060128951,2.45740147,4069.4,4068.1,0.4356]
[1761060128952,2.45749842,4069.2,4068.1,0.4356]
[1761060129155,2.4564526,4071.0,4068.1,0.4356]
[1761060129156,2.45719686,4069.7,4069.5,0.09999999]
[1761060129466,2.45722196,4069.7,4069.5,0.09999999]
[1761060129832,2.45722196,4069.7,4068.0,0.2207]
[1761060129833,3.657,4069.6,4068.0,0.2207]
[1761060130031,2.45791407,4068.5,4068.0,0.2207]
[1761060130231,2.45791407,4068.5,4066.7,0.80927086]
[1761060130232,0.01946068,4068.4,4066.6,0.4356]
[1761060130454,0.01946068,4068.4,4067.3,0.09999999]
[1761060130631,2.45747847,4069.3,4066.1,0.2207]
[1761060130632,2.45855584,4067.5,4066.1,0.2207]
[1761060130831,1.713,4071.2,4066.1,0.2207]
[1761060131074,1.713,4071.2,4065.2,0.2207]
[1761060131075,1.728,4069.5,4066.6,0.09999999]
[1761060131312,2.45724395,4069.6,4065.2,0.2207]
[1761060131529,2.45963782,4065.7,4065.1,0.4356]
[1761060131677,3.656,4069.4,4062.5,2.04530967]
[1761060131678,2.47912223,4065.6,4065.5,0.09999999]
[1761060131874,2.47912223,4065.6,4062.6,0.4356]
[1761060131875,1.728,4065.5,4062.6,0.4356]
[1761060132223,1.728,4065.5,4062.7,0.48370484]
[1761060132224,1.74746068,4065.4,4062.7,0.48370484]
[1761060132507,1.74746068,4065.4,4061.5,1.21714582]
[1761060132508,1.728,4065.0,4061.6,0.4356]
[1761060132679,2.46075459,4063.8,4061.7,0.48422295]
[1761060132879,2.46196267,4061.8,4061.7,0.48422295]
[1761060133112,0.099,4063.7,4060.1,2.46294558]
[1761060133272,3.773,4063.6,4060.2,0.48522452]
[1761060133480,2.46246258,4061.0,4060.2,0.48522452]
[1761060133818,2.342,4061.5,4060.3,0.92064996]
[1761060133972,1.728,4063.2,4060.3,0.92064996]
[1761060133973,0.099,4062.9,4060.3,0.4356]
[1761060134325,2.46082824,4063.7,4060.4,4.21713352]
[1761060134326,2.46081157,4063.7,4060.4,4.21713352]
[1761060134618,2.56,4063.1,4060.5,1.72971059]
[1761060134922,2.46195818,4061.9,4060.6,0.48483973]
[1761060135219,2.46106065,4063.3,4060.6,0.48483973]
[1761060135220,2.46143137,4062.7,4061.3,2.46222395]
[1761060135386,2.46143137,4062.7,4060.7,0.4356]
[1761060135387,0.099,4064.4,4061.4,0.50921693]
[1761060135594,2.46032722,4064.5,4061.5,0.48459488]
[1761060135794,3.675,4064.4,4062.8,2.4613382]
[1761060136106,0.102,4065.1,4061.5,1.72946574]
[1761060136107,3.675,4064.3,4061.8,2.4619424]
[1761060136303,3.675,4064.3,4060.9,5.82674337]
[1761060136304,3.675,4064.3,4061.9,0.48427722]
[1761060136616,3.675,4064.3,4060.8,2.14312773]
[1761060136617,4.18850883,4064.2,4062.0,0.48427722]
[1761060136817,0.01946068,4064.1,4061.0,0.80927086]
[1761060136989,2.461425,4062.7,4061.5,2.46213292]
[1761060137193,2.461425,4062.7,4061.1,2.94686001]
[1761060137194,0.099,4064.9,4061.6,0.50929893]
[1761060137540,2.46034123,4064.5,4062.1,2.61]
[1761060137823,3.673,4064.5,4062.3,0.80927086]
[1761060138028,3.675,4065.1,4062.6,0.80927086]
[1761060138329,2.46045097,4064.3,4062.7,0.4846781]
[1761060138623,3.675,4065.1,4062.7,0.4846781]
[1761060138624,0.01946068,4065.0,4062.8,0.4846781]
[1761060138794,0.0996,4065.0,4062.8,0.4846781]
[1761060138975,2.4608181,4063.7,4062.6,2.46147787]
[1761060139314,2.46071381,4063.9,4062.7,2.97024432]
[1761060139479,2.46071381,4063.9,4062.6,0.4727]
[1761060139480,0.0996,4065.1,4062.8,0.48421924]
[1761060139684,5.397,4065.0,4062.9,0.48421924]
[1761060139987,2.46014564,4064.8,4063.0,0.48473935]
[1761060140231,2.46054758,4064.2,4063.1,2.9462257]
[1761060140403,2.4599014,4065.3,4063.2,0.48509987]
[1761060140608,0.50688,4065.5,4062.7,0.4727]
[1761060140777,0.50688,4065.5,4062.3,0.80927086]
[1761060140778,1.728,4065.3,4062.8,0.95780983]
[1761060140980,1.728,4065.3,4062.4,0.02461599]
[1761060140981,0.60648,4065.5,4062.9,0.95780983]
[1761060141290,2.46063157,4064.0,4063.0,0.48510983]
[1761060141476,2.46065171,4064.0,4063.0,0.48510983]
[1761060141680,2.46080763,4063.8,4063.0,0.48510983]
[1761060141981,1.728,4065.3,4062.7,2.46138804]
[1761060141982,0.0996,4065.3,4063.1,0.98242157]
[1761060142214,1.26576527,4068.7,4063.1,0.98242157]
[1761060142215,0.161,4066.3,4063.4,0.80927086]
[1761060142417,0.161,4066.3,4063.7,0.80927086]
[1761060142619,0.10975426,4068.4,4063.8,0.50971734]
[1761060142620,0.1604,4066.9,4063.8,0.50971734]
[1761060142785,0.1008,4067.6,4064.4,0.80927086]
[1761060142981,0.1014,4068.4,4065.1,0.80927086]
[1761060143203,0.1014,4068.4,4065.2,0.48510983]
[1761060143204,1.728,4068.1,4065.2,0.48510983]
[1761060143407,0.12146068,4068.0,4065.3,1.18840983]
[1761060143605,2.45887506,4067.0,4065.9,2.45944613]
[1761060143820,3.66,4066.9,4065.8,2.45953048]
[1761060144019,3.658,4067.4,4065.4,0.4709]
[1761060144332,2.45862283,4067.4,4065.5,0.48432313]
[1761060144543,2.45884266,4067.0,4065.6,0.48432313]
[1761060144703,2.45930886,4066.2,4065.7,0.48432313]
[1761060144894,2.45930886,4066.2,4065.3,0.2306]
[1761060144895,2.45948006,4065.9,4065.3,0.2306]
[1761060145095,2.45866978,4067.3,4065.3,0.2306]
[1761060145096,2.45849339,4067.6,4065.4,0.95501802]
[1761060145409,2.56052514,4068.2,4065.5,0.48411802]
[1761060145410,2.45930338,4066.2,4065.5,0.48411802]
[1761060145609,2.45839172,4067.7,4065.5,2.94383697]
[1761060145930,2.45935986,4066.1,4065.6,0.48411802]
[1761060146097,1.728,4067.5,4065.7,0.4709]
[1761060146312,0.1024,4067.8,4065.8,0.48411802]
[1761060146313,4.18639172,4067.7,4065.8,0.48411802]
[1761060146512,1.728,4067.3,4065.8,0.48411802]
[1761060146843,2.47791283,4067.6,4065.3,0.2306]
[1761060146844,2.45950418,4065.9,4065.4,0.1224]
[1761060147149,0.1224,4066.1,4065.5,0.48465895]
[1761060147332,2.45954429,4065.8,4065.6,0.48465895]
[1761060147535,0.1224,4065.8,4065.7,0.48465895]
[1761060147724,0.50688,4066.8,4064.7,0.692]
[1761060148050,0.1024,4066.9,4064.8,0.48547363]
[1761060148250,1.728,4067.4,4065.2,3.2691628]
[1761060148251,3.604,4067.4,4065.2,3.2691628]
[1761060148434,2.45929745,4066.3,4065.3,1.29474449]
[1761060148610,1.728,4067.3,4065.2,0.4709]
[1761060148611,0.01946068,4066.2,4065.4,0.48547363]
[1761060148816,0.01946068,4066.2,4064.7,0.2211]
[1761060148817,2.45966155,4065.6,4065.5,0.48547363]
[1761060149012,2.45966155,4065.6,4064.6,0.80927086]
[1761060149013,6.11066155,4065.6,4064.6,0.80927086]
[1761060149251,6.11066155,4065.6,4064.4,0.4709]
[1761060149252,2.45996354,4065.2,4064.7,1.29535713]
[1761060149460,2.46000521,4065.1,4064.8,0.48608627]
[1761060149673,3.651,4065.6,4064.9,0.48608627]
[1761060149674,2.45990954,4065.2,4064.9,0.48608627]
[1761060149959,0.01946068,4065.1,4064.1,0.80927086]
[1761060150119,0.01946068,4065.1,4063.8,1.21714582]
[1761060150120,3.649,4065.0,4064.2,0.48751649]
[1761060150451,0.1614,4066.0,4064.3,0.48751649]
[1761060150770,2.45989289,4065.3,4064.5,0.80927086]
[1761060151073,2.45989289,4065.3,4064.2,1.21714582]
[1761060151074,6.10795891,4065.2,4064.6,0.48751649]
[1761060151245,3.648,4065.6,4064.8,0.80927086]
[1761060151547,2.4600246,4065.0,4064.9,0.48751649]
[1761060151944,2.45984306,4065.3,4064.1,0.80927086]
[1761060152152,2.46031002,4064.6,4064.2,0.4891824]
[1761060152316,3.648,4065.6,4064.3,0.4891824]
[1761060152671,1.728,4066.1,4064.3,0.4891824]
[1761060152672,3.647,4066.1,4064.6,0.80927086]
[1761060152820,2.45958844,4065.8,4064.9,0.80927086]
[1761060153016,0.1602,4066.8,4065.2,0.80927086]
[1761060153216,0.1602,4066.8,4065.0,0.02460024]
[1761060153217,3.645,4066.7,4065.3,0.80927086]
[1761060153459,3.645,4066.7,4063.4,20.53944783]
[1761060153460,1.728,4066.5,4064.9,0.80927086]
[1761060153768,1.8288,4066.6,4064.9,0.80927086]
[1761060153769,2.4597866,4065.4,4064.9,0.80927086]
[1761060153914,2.45952957,4065.9,4064.9,0.80927086]
[1761060154120,2.45963416,4065.7,4065.0,0.80927086]
[1761060154354,2.45930761,4066.2,4065.0,0.80927086]
[1761060154563,1.728,4066.5,4064.7,1.21714582]
[1761060154564,6.10136639,4066.1,4065.1,0.80927086]
[1761060154715,2.45947859,4066.0,4065.2,2.45989052]
[1761060154920,2.45919418,4066.4,4065.3,0.80927086]
[1761060155154,0.1008,4067.6,4065.4,0.80927086]
[1761060155155,0.01946068,4066.3,4065.4,0.80927086]
[1761060155351,0.01946068,4066.3,4065.5,0.80927086]
[1761060155352,2.45928402,4066.3,4065.5,0.80927086]
[1761060155571,3.64,4066.5,4065.5,0.80927086]
[1761060155747,3.64,4066.5,4065.4,0.80927086]
[1761060156064,2.45949838,4065.9,4065.4,0.80927086]
[1761060156268,2.45936856,4066.1,4065.4,0.80927086]
[1761060156472,0.1602,4066.8,4065.7,0.61294024]
[1761060156658,0.05,4070.1,4065.2,1.68804582]
[1761060156659,0.05,4070.1,4067.7,2.45839172]
[1761060156865,1.29,4071.5,4067.7,2.45839172]
[1761060156866,0.0981,4070.3,4068.0,0.80927086]
[1761060157033,0.0981,4070.3,4067.9,0.61294024]
[1761060157373,0.0981,4070.3,4068.0,1.08384024]
[1761060157627,2.45741346,4069.4,4068.2,0.61294024]
[1761060157778,0.1224,4069.0,4068.3,0.1224]
[1761060157958,0.1224,4069.0,4068.5,2.45789553]
[1761060158272,0.1224,4069.0,4068.3,0.1224]
[1761060158273,0.1224,4069.0,4068.4,0.4709]
[1761060158434,0.001,4069.6,4068.6,0.61294024]
[1761060158634,0.001,4069.6,4069.0,0.61294024]
[1761060158864,0.001,4069.6,4069.5,2.45730433]
[1761060159034,0.001,4069.6,4069.5,0.4709]
[1761060159534,0.001,4069.6,4068.6,1.21714582]
[1761060159535,0.001,4069.6,4068.8,0.61294024]
[1761060159735,0.001,4069.6,4068.2,1.21714582]
[1761060159736,0.001,4069.6,4068.7,0.61294024]
[1761060159936,0.001,4069.6,4068.4,0.61294024]
[1761060160136,0.001,4069.6,4068.5,2.45790003]
[1761060160137,1.95,4069.5,4068.5,2.45790003]
[1761060160370,0.001,4069.6,4068.6,0.61294024]
[1761060160671,0.001,4069.6,4068.3,0.61294024]
[1761060160672,2.45796873,4068.4,4068.3,0.61294024]
[1761060160873,2.45796873,4068.4,4067.2,1.63624773]
[1761060160874,2.45830775,4067.9,4067.5,0.61294024]
[1761060161043,2.45840376,4067.7,4066.8,3.07187312]
[1761060161403,2.47792189,4067.6,4066.7,0.83404024]
[1761060161670,3.657,4068.1,4066.7,1.30494024]
[1761060161858,0.01946068,4068.0,4066.7,0.692]
[1761060162045,3.655,4067.9,4066.2,0.61294024]
[1761060162372,3.655,4067.9,4066.1,2.93025813]
[1761060162678,3.653,4068.3,4066.8,2.4588828]
[1761060162890,2.4582636,4068.0,4066.5,0.61294024]
[1761060163192,2.45837237,4067.8,4066.7,3.07193647]
[1761060163403,6.11023233,4068.0,4066.8,2.45893577]
[1761060163548,6.11023233,4068.0,4067.1,2.45875158]
[1761060163549,2.45827379,4067.9,4067.1,2.45875158]
[1761060163868,2.45836174,4067.8,4067.0,2.45881485]
[1761060164180,2.45832308,4067.9,4067.0,2.45881485]
[1761060164380,3.648,4068.7,4067.0,3.54263483]
[1761060164678,2.45814702,4068.2,4067.3,2.45862584]
[1761060164880,2.45755756,4069.1,4067.5,2.45849524]
[1761060165082,2.45805807,4068.3,4067.5,2.45849524]
[1761060165308,2.45785099,4068.6,4067.8,2.45832297]
[1761060165309,2.45785449,4068.6,4067.8,2.45832297]
[1761060165511,1.728,4069.4,4067.5,0.4709]
[1761060165512,2.45792389,4068.5,4067.7,2.45838712]
[1761060165714,2.45757421,4069.1,4068.2,2.45807899]
[1761060166003,3.643,4069.6,4068.0,0.61294024]
[1761060166169,3.643,4069.6,4068.1,0.61294024]
[1761060166371,2.45803821,4068.3,4068.1,0.61294024]
[1761060166565,2.45810353,4068.2,4067.9,0.61294024]
[1761060166765,2.57486501,4069.5,4067.1,0.4709]
[1761060166766,0.0981,4069.5,4067.7,0.61294024]
[1761060166967,0.001,4069.6,4067.8,0.61294024]
[1761060166968,2.4574251,4069.3,4067.8,0.61294024]
[1761060167171,2.45730433,4069.5,4067.8,1.08384024]
[1761060167366,2.45730433,4069.5,4067.8,0.4709]
[1761060167367,2.45798204,4068.4,4067.8,0.4709]
[1761060167668,2.45783731,4068.7,4067.8,0.4709]
[1761060167869,2.45828614,4069.6,4067.8,0.4709]
[1761060167870,2.45785122,4068.6,4067.8,1.08384024]
[1761060168071,2.45785122,4068.6,4067.8,3.54216445]
[1761060168268,3.639,4069.0,4067.8,0.61294024]
[1761060168580,3.639,4069.0,4067.1,0.4709]
[1761060168581,0.1224,4068.1,4067.7,0.61294024]
[1761060168971,0.1224,4068.1,4067.8,0.4709]
[1761060169202,2.45793776,4068.5,4067.8,0.4709]
[1761060169371,3.634,4069.0,4067.8,0.61294024]
[1761060169701,18.55801429,4070.7,4067.6,0.61294024]
[1761060169702,1.728,4070.6,4067.6,0.61294024]
[1761060169869,2.45785184,4068.6,4067.8,2.92921977]
[1761060170065,2.45790791,4068.6,4067.8,0.4709]
[1761060170305,2.45799004,4068.4,4067.8,0.4709]
[1761060170502,0.0981,4069.3,4067.7,0.61294024]
[1761060170799,2.45804369,4068.3,4067.7,0.61294024]
[1761060171003,1.8261,4069.9,4067.7,0.61294024]
[1761060171178,1.729,4069.6,4067.9,0.61294024]
[1761060171370,2.45769145,4068.9,4067.8,1.08384024]
[1761060171569,3.626,4069.0,4067.6,0.61294024]
[1761060171789,0.0981,4069.5,4067.6,0.61294024]
[1761060172004,0.0981,4069.5,4067.6,0.4709]
[1761060172005,2.45795438,4068.5,4067.6,0.4709]
[1761060172304,2.4578479,4068.6,4067.3,0.80927086]
[1761060172602,3.624,4068.7,4066.9,0.4709]
[1761060172603,2.45826878,4068.0,4067.2,0.80927086]
[1761060172820,2.45821484,4068.0,4067.2,3.26790471]
[1761060172991,3.623,4068.2,4067.4,2.45856686]
[1761060173192,2.45801483,4068.4,4067.3,0.4709]
[1761060173441,2.45796873,4068.4,4067.4,2.45851836]
[1761060173642,2.45807492,4068.3,4067.6,2.45843624]
[1761060173938,4.18534767,4069.5,4067.3,0.4709]
[1761060174138,2.45806581,4068.3,4067.5,2.45846982]
[1761060174288,3.617,4068.5,4067.7,2.45834146]
[1761060174489,2.45736472,4069.4,4067.7,0.02458391]
[1761060174830,2.45736472,4069.4,4067.6,0.4315]
[1761060174831,2.45793144,4068.5,4067.8,2.88981766]
[1761060175024,0.0991,4069.6,4067.8,2.88981766]
[1761060175025,4.18530433,4069.5,4067.9,2.48284342]
[1761060175245,0.0991,4069.6,4067.8,0.4315]
[1761060175246,1.8271,4069.6,4067.8,0.4315]
[1761060175433,2.45785521,4068.6,4067.9,0.4315]
[1761060175582,2.4574251,4069.3,4067.0,0.4315]
[1761060175782,0.0981,4069.3,4067.0,0.4315]
[1761060176033,0.0981,4069.3,4067.3,2.45860626]
[1761060176189,0.0981,4069.3,4067.0,0.4315]
[1761060176190,0.0981,4069.3,4067.1,0.02458754]
[1761060176191,0.0018,4069.2,4067.1,0.02458754]
[1761060176383,3.608,4069.1,4067.1,0.23833974]
[1761060176640,1.728,4068.7,4066.0,1.21714582]
[1761060176817,1.728,4068.7,4065.9,2.45947146]
[1761060176818,2.45897431,4066.8,4065.9,2.45947146]
[1761060177017,2.407,4067.1,4066.0,0.21401871]
[1761060177340,2.45899039,4066.8,4065.8,2.89102718]
[1761060177643,2.45899146,4066.8,4065.8,0.4315]
[1761060177920,0.0981,4068.0,4065.7,0.21406788]
[1761060178135,2.45859333,4067.4,4065.9,0.4315]
[1761060178339,2.4587462,4067.2,4066.0,2.48401376]
[1761060178627,2.45827336,4067.9,4066.2,2.45924266]
[1761060178831,0.0981,4070.8,4066.0,2.45941957]
[1761060178832,2.45839172,4067.7,4066.0,2.45941957]
[1761060179002,2.45886543,4067.0,4066.6,0.002]
[1761060179205,0.1224,4066.7,4066.6,0.002]
[1761060179435,2.58139623,4066.7,4066.6,0.002]
[1761060179590,0.1224,4066.7,4066.6,0.002]
[1761060180097,0.1224,4066.7,4066.6,0.4335]
[1761060180288,0.1224,4066.7,4066.6,0.002]
[1761060181107,0.0981,4068.7,4066.6,0.002]
[1761060181307,0.0981,4069.2,4066.7,0.2309]
[1761060181528,0.1224,4067.8,4067.2,2.45866176]
[1761060181711,2.45839276,4067.7,4066.7,0.2309]
[1761060181889,2.55595467,4068.6,4066.8,2.48352512]
[1761060181890,2.45808619,4068.3,4066.8,2.48352512]
[1761060182089,1.729,4069.6,4066.8,0.45608935]
[1761060182090,0.0981,4069.3,4066.8,0.45608935]
[1761060182314,2.45785183,4068.6,4067.5,2.45850769]
[1761060182517,0.0981,4069.3,4066.9,0.4315]
[1761060182518,0.176,4068.5,4066.9,0.4315]
[1761060182826,1.728,4069.5,4066.7,2.68989124]
[1761060182827,3.597,4068.7,4067.8,2.45832758]
[1761060183026,3.597,4068.7,4067.0,2.89030367]
[1761060183027,2.45772383,4068.9,4067.6,2.45839857]
[1761060183243,0.001,4069.6,4067.2,2.45869394]
[1761060183396,0.001,4069.6,4067.1,0.4315]
[1761060183397,0.001,4069.6,4067.6,2.45841727]
[1761060183590,0.001,4069.6,4067.8,1.728]
[1761060183792,0.001,4069.6,4068.0,2.45821042]
[1761060184094,0.001,4069.6,4069.5,2.68820433]
[1761060184300,0.017,4070.9,4069.6,2.45724395]
[1761060184537,1.437,4071.1,4069.7,2.48174924]
[1761060184710,3.592,4071.1,4069.8,2.45712315]
[1761060186994,1.29,4072.5,4070.9,0.45606459]
[1761060187195,1.29,4072.5,4070.9,2.91250221]
[1761060187395,1.29,4072.5,4072.4,0.2309]
[1761060187628,1.29,4072.5,4071.8,0.4315]
[1761060188469,1.29,4072.5,4071.7,0.2309]
[1761060188679,1.24746068,4072.4,4070.8,0.2309]
[1761060188968,0.0991,4072.3,4070.2,0.2309]
[1761060189332,1.728,4072.2,4070.3,0.4315]
[1761060189584,2.959,4072.1,4070.3,0.4315]
[1761060189885,2.45597787,4071.7,4070.4,0.02456761]
[1761060190167,1.29,4072.5,4070.3,0.4315]
[1761060190365,1.29,4072.5,4070.4,0.50688]
[1761060190530,1.29,4072.5,4070.6,0.50688]
[1761060190730,1.29,4072.5,4071.2,2.45622992]
[1761060190929,1.29,4072.5,4071.3,2.45621791]
[1761060191168,1.29,4072.5,4071.2,0.4315]
[1761060191565,2.45575243,4072.1,4071.2,0.4315]
[1761060191745,1.29,4072.5,4071.2,0.4315]
[1761060192056,1.29,4072.5,4071.3,0.14696217]
[1761060192258,0.1224,4072.1,4071.4,0.1224]
[1761060192643,1.29,4072.5,4071.5,0.4315]
[1761060192844,1.293,4072.6,4071.5,0.4315]
[1761060193294,0.01946068,4072.5,4070.8,0.4315]
[1761060193441,0.01946068,4072.4,4070.8,0.4315]
[1761060193637,1.293,4072.6,4071.1,15.94801429]
[1761060194063,1.293,4072.6,4071.9,2.4557987]
[1761060194258,1.293,4072.6,4072.0,0.4315]
[1761060194462,1.293,4072.6,4072.1,2.45570129]
[1761060194773,1.293,4072.6,4072.0,0.4315]
[1761060194934,1.293,4072.6,4072.1,2.45573536]
[1761060195139,1.293,4072.6,4072.0,0.4315]
[1761060195472,1.293,4072.6,4072.2,2.45567506]
[1761060195636,1.293,4072.6,4072.5,2.45549416]
[1761060195837,0.001,4074.7,4072.6,1.728]
[1761060196038,0.001,4074.7,4073.4,15.94801429]
[1761060196237,0.001,4074.7,4073.5,0.45604891]
[1761060196456,0.001,4074.7,4073.5,0.4315]
[1761060197873,0.001,4074.7,4073.6,2.4548311]
[1761060198059,0.001,4074.7,4073.5,0.4315]
[1761060198240,0.001,4074.7,4073.0,1.728]
[1761060198440,0.001,4074.7,4072.9,3.577]
[1761060198640,0.001,4074.7,4073.0,0.02455192]
[1761060198838,0.001,4074.7,4072.9,6.03221257]
[1761060199039,0.001,4074.7,4074.2,2.45446882]
[1761060199245,0.001,4074.7,4073.9,2.45459633]
[1761060199542,0.001,4074.7,4073.0,1.728]
[1761060199743,0.001,4074.7,4072.4,15.94801429]